fUSD/lending_fUSD_20250325
["ID","MTS","AMOUNT","RATE_DAILY","PERIOD"]
[356644377,1742893843795,-500.0,0.00047397,120]
[356644378,1742893843805,-500.0,0.00047397,120]
[356644379,1742893843814,-511.9,0.00047397,2]
[356644380,1742893843823,-500.0,0.00047397,120]
[356644381,1742893843833,-500.0,0.00047397,120]
[356644382,1742893843842,-500.0,0.00047397,120]
[356644383,1742893843851,-1236.41,0.00047397,120]
[356644384,1742893843861,-500.0,0.00047397,120]
[356644385,1742893843871,-500.0,0.00047397,120]
[356644386,1742893843880,-500.0,0.00047397,120]
[356644387,1742893843889,-520.19,0.00047397,7]
[356644388,1742893843898,-500.0,0.00047397,120]
[356644389,1742893843907,-500.0,0.00047397,120]
[356644390,1742893843916,-500.0,0.00047397,120]
[356644391,1742893843926,-3915.62,0.00047397,2]
[356644392,1742893843935,-827.02,0.00047397,120]
[356644393,1742893843944,-2003.2,0.00047397,120]
[356644394,1742893843953,-500.0,0.00047397,7]
[356644395,1742893843962,-500.0,0.00047397,120]
[356644396,1742893843971,-700.0,0.000474,17]
[356644397,1742893843981,-5000.0,0.00047452,120]
[356644398,1742893843991,-740.0,0.000475,30]
[356644399,1742893844000,-1000.0,0.000475,17]
[356644400,1742893844011,-752.0,0.000475,30]
[356644401,1742893844022,-235.5811398,0.0004752,4]
[356644402,1742893844032,-20976.7115015,0.00047532,3]
[356644403,1742893844042,-8500.0,0.00047543,16]
[356644404,1742893844053,-8500.0,0.00047551,16]
[356644405,1742893844062,-20976.7115015,0.00047559,3]
[356644406,1742893844072,-8500.0,0.0004756,16]
[356644407,1742893844081,-184.00331722,0.00047561,28]
[356644408,1742893844091,-8500.0,0.00047569,16]
[356644409,1742893844100,-563.12579232,0.00047569,16]
[356644410,1742893844109,-150.0,0.00047573,10]
[356644411,1742893844119,-151.36,0.0004758,2]
[356644412,1742893844130,-20976.7115015,0.0004759,3]
[356644413,1742893844140,-5216.38919009,0.000476,2]
[356644414,1742893844149,-1200.0,0.000476,17]
[356644415,1742893844158,-662.0,0.00047626,30]
[356644416,1742893844167,-255.857387,0.00047651,14]
[356644417,1742893844177,-20976.7115015,0.00047651,3]
[356644418,1742893844186,-17647.0217009,0.00047661,30]
[356644419,1742893844195,-184.08144896,0.00047666,120]
[356644420,1742893844204,-2000.0,0.00047671,2]
[356644421,1742893844214,-500.0,0.00047671,120]
[356644422,1742893844223,-500.0,0.00047671,120]
[356644423,1742893844231,-500.0,0.00047671,120]
[356644424,1742893844240,-1042.29,0.00047671,120]
[356644425,1742893844250,-500.0,0.00047671,120]
[356644426,1742893844259,-500.0,0.00047671,120]
[356644427,1742893844268,-500.0,0.00047671,120]
[356644428,1742893844277,-500.0,0.00047671,120]
[356644429,1742893844286,-511.9,0.00047671,2]
[356644430,1742893844295,-500.0,0.00047671,120]
[356644431,1742893844304,-500.0,0.00047671,120]
[356644432,1742893844313,-500.0,0.00047671,120]
[356644433,1742893844322,-1236.41,0.00047671,120]
[356644434,1742893844331,-500.0,0.00047671,120]
[356644435,1742893844340,-500.0,0.00047671,120]
[356644436,1742893844349,-500.0,0.00047671,120]
[356644437,1742893844358,-520.19,0.00047671,7]
[356644438,1742893844367,-500.0,0.00047671,120]
[356644439,1742893844376,-500.0,0.00047671,120]
[356644440,1742893844386,-500.0,0.00047671,120]
[356644441,1742893844395,-3915.62,0.00047671,2]
[356644442,1742893844404,-827.02,0.00047671,120]
[356644443,1742893844414,-2003.2,0.00047671,120]
[356644444,1742893844424,-500.0,0.00047671,7]
[356644445,1742893844434,-500.0,0.00047671,120]
[356644446,1742893844443,-150.0,0.00047699,7]
[356644447,1742893844452,-200.0,0.000477,17]
[356644448,1742893844461,-150.0,0.00047731,7]
[356644449,1742893844470,-88888.0,0.00047763,120]
[356644450,1742893844480,-150.0,0.00047786,7]
[356644451,1742893844488,-206.0,0.000478,30]
[356644452,1742893844498,-200.0,0.000478,17]
[356644453,1742893844507,-150.0,0.00047806,7]
[356644454,1742893844516,-20976.7115015,0.00047815,4]
[356644455,1742893844526,-1453.31136992,0.00047815,3]
[356644456,1742893844535,-150.0,0.00047818,7]
[356644457,1742893844544,-20976.7115015,0.00047825,4]
[356644458,1742893844555,-1453.31136992,0.00047825,3]
[356644459,1742893844564,-150.0,0.00047825,7]
[356644460,1742893844574,-150.0,0.00047829,7]
[356644461,1742893844583,-41953.423003,0.00047835,4]
[356644462,1742893844593,-5813.24547968,0.00047835,3]
[356644463,1742893844625,-150.0,0.00047835,7]
[356644464,1742893844634,-199.7996,0.00047835,14]
[356644465,1742893844643,-199.7996,0.00047835,14]
[356644466,1742893844652,-187.639047,0.00047835,14]
[356644467,1742893844661,-3046.12562,0.0004786,31]
[356644468,1742893844670,-150.0,0.00047875,7]
[356644469,1742893844679,-150.0,0.00047885,7]
[356644470,1742893844688,-154.82085398,0.000479,120]
[356644471,1742893844697,-200.0,0.000479,17]
[356644472,1742893844707,-150.02134318,0.000479,2]
[356644473,1742893844716,-1439.46081973,0.000479,2]
[356644474,1742893844725,-1609.0,0.000479,7]
[356644475,1742893844734,-333.6141914,0.000479,15]
[356644476,1742893844743,-150.0,0.00047902,7]
[356644477,1742893844752,-150.0,0.00047909,7]
[356644478,1742893844761,-20976.7115015,0.00047925,4]
[356644479,1742893844770,-1453.31136992,0.00047925,4]
[356644480,1742893844779,-150.0,0.00047926,7]
[356644481,1742893844788,-150.0,0.00047928,7]
[356644482,1742893844796,-1453.31136992,0.00047935,4]
[356644483,1742893844805,-150.0,0.00047935,7]
[356644484,1742893844814,-150.0,0.00047939,7]
[356644485,1742893844823,-2000.0,0.00047945,2]
[356644486,1742893844832,-500.0,0.00047945,120]
[356644487,1742893844841,-500.0,0.00047945,120]
[356644488,1742893844850,-500.0,0.00047945,120]
[356644489,1742893844859,-1042.29,0.00047945,120]
[356644490,1742893844869,-500.0,0.00047945,120]
[356644491,1742893844878,-500.0,0.00047945,120]
[356644492,1742893844887,-500.0,0.00047945,120]
[356644493,1742893844898,-199.94152999,0.00047945,120]
[356644494,1742893844907,-511.9,0.00047945,2]
[356644495,1742893844916,-500.0,0.00047945,120]
[356644496,1742893844925,-500.0,0.00047945,120]
[356644497,1742893844935,-500.0,0.00047945,120]
[356644498,1742893844946,-1236.41,0.00047945,120]
[356644499,1742893844955,-500.0,0.00047945,120]
[356644500,1742893844964,-500.0,0.00047945,120]
[356644501,1742893844973,-500.0,0.00047945,120]
[356644502,1742893844982,-520.19,0.00047945,7]
[356644503,1742893844992,-504.99619729,0.00047945,120]
[356644504,1742893845001,-544.49138823,0.00047945,120]
[356644505,1742893845010,-500.0,0.00047945,120]
[356644506,1742893845019,-3915.62,0.00047945,2]
[356644507,1742893845027,-827.02,0.00047945,120]
[356644508,1742893845036,-2003.2,0.00047945,120]
[356644509,1742893845046,-500.0,0.00047945,7]
[356644510,1742893845060,-500.0,0.00047945,120]
[356644511,1742893845068,-151.36,0.00047951,2]
[356644512,1742893845078,-20976.7115015,0.00047952,4]
[356644513,1742893845087,-1453.31136992,0.00047952,4]
[356644514,1742893845098,-150.0,0.00047953,7]
[356644515,1742893845107,-62930.1345045,0.0004796,4]
[356644516,1742893845116,-7266.5568496,0.0004796,4]
[356644517,1742893845126,-199.7996,0.00047962,14]
[356644518,1742893845136,-199.7996,0.00047962,14]
[356644519,1742893845145,-20976.7115015,0.00047963,4]
[356644520,1742893845154,-2906.62273984,0.00047963,4]
[356644521,1742893845164,-41953.423003,0.00047969,4]
[356644522,1742893845173,-5813.24547968,0.00047969,4]
[356644523,1742893845183,-20976.7115015,0.0004797,4]
[356644524,1742893845192,-1453.31136992,0.0004797,4]
[356644525,1742893845201,-700.0,0.0004797,3]
[356644526,1742893845211,-972.95239067,0.0004797,3]
[356644527,1742893845220,-247.73267975,0.0004797,61]
[356644528,1742893845229,-48225.82173455,0.0004797,40]
[356644529,1742893845238,-41953.423003,0.0004797,4]
[356644530,1742893845247,-7266.5568496,0.0004797,4]
[356644531,1742893845256,-59714.0,0.00047973,120]
[356644532,1742893845266,-150.0,0.00047973,10]
[356644533,1742893845275,-150.0,0.00047974,7]
[356644534,1742893845284,-199.7996,0.0004798,14]
[356644535,1742893845293,-199.7996,0.0004798,14]
[356644536,1742893845303,-20976.7115015,0.0004798,4]
[356644537,1742893845312,-20976.7115015,0.0004799,4]
[356644538,1742893845322,-199.7996,0.0004799,14]
[356644539,1742893845331,-199.7996,0.0004799,14]
[356644540,1742893845340,-20976.7115015,0.0004799,4]
[356644541,1742893845350,-151.36,0.0004799,2]
[356644542,1742893845359,-151.36,0.0004799,2]
[356644543,1742893845368,-151.36,0.0004799,2]
[356644544,1742893845378,-151.36,0.0004799,2]
[356644545,1742893845387,-151.36,0.0004799,2]
[356644546,1742893845397,-151.36,0.0004799,2]
[356644547,1742893845406,-151.36,0.0004799,2]
[356644548,1742893845415,-151.36,0.0004799,2]
[356644549,1742893845425,-151.36,0.0004799,2]
[356644550,1742893845434,-151.36,0.0004799,2]
[356644551,1742893845444,-151.36,0.0004799,2]
[356644552,1742893845453,-151.36,0.0004799,2]
[356644553,1742893845463,-151.36,0.0004799,2]
[356644554,1742893845472,-151.36,0.0004799,2]
[356644555,1742893845481,-151.36,0.0004799,2]
[356644556,1742893845491,-151.36,0.0004799,2]
[356644557,1742893845500,-151.36,0.0004799,2]
[356644558,1742893845510,-151.36,0.0004799,2]
[356644559,1742893845519,-151.36,0.0004799,2]
[356644560,1742893845529,-151.36,0.0004799,2]
[356644561,1742893845539,-151.36,0.0004799,2]
[356644562,1742893845549,-151.36,0.0004799,2]
[356644563,1742893845558,-151.36,0.0004799,2]
[356644564,1742893845568,-151.36,0.0004799,2]
[356644565,1742893845577,-170.97725531,0.0004799,30]
[356644566,1742893845587,-1000.0,0.00047999,60]
[356644567,1742893845596,-285.03784669,0.00048,120]
[356644568,1742893845606,-5313075.61659707,0.00048,7]
[356644569,1742893845672,-10927.9053696,0.00048,7]
[356644570,1742893845917,-439.6789258,0.00035292,2]
[356644571,1742893845929,-99.2810742,0.00035292,2]
[356644572,1742893845938,-245.66113496,0.00048,7]
[356644573,1742893846293,-7321.95849467,0.00048,7]
[356644574,1742893846348,-423.63844519,0.00048,7]
[356644575,1742893846402,-34434.10287917,0.00048,7]
[356644576,1742893846414,-7071.4,0.00048,7]
[356644577,1742893846456,-851.48121036,0.00048,7]
[356644578,1742893846469,-2380.88533887,0.00048,7]
[356644579,1742893846511,-12736.87844838,0.00048,7]
[356644581,1742893846567,-585.70187622,0.00048,7]
[356644582,1742893846578,-2468.22373007,0.00048,7]
[356644585,1742894306625,-151.28,0.00026849,2]
[356644586,1742894306647,-503.5192,0.00031086,2]
[356644587,1742894309433,-157.9077209,0.00044125,120]
[356644588,1742894323266,-151.6906,0.00031086,2]
[356644589,1742894356870,-293.28535622,0.00030173,20]
[356644591,1742894374448,-152.91151117,0.00030173,20]
[356644592,1742894399246,-167.73673983,0.00036867,40]
[356644593,1742894408923,-1168.7398,0.00030173,20]
[356644598,1742894708983,-187.40607384,0.00012,2]
[356644599,1742894720097,5187.24310293,9e-05,2]
[356644600,1742894736756,14960.96945966,8e-05,2]
[356644601,1742894762258,5239.66925512,8e-05,2]
[356644602,1742894766484,857.7708507,8e-05,2]
[356644603,1742894834711,205.0,9.8e-05,2]
[356644604,1742894873060,1668.33186043,0.0001,2]
[356644605,1742894876891,544184.83976368,0.0001,2]
[356644606,1742894876916,3274.35472585,0.0001,2]
[356644607,1742894876939,3274.35472585,0.0001,2]
[356644608,1742894876961,3274.35472585,0.0001,2]
[356644609,1742894876993,533.77725863,0.0001,2]
[356644610,1742894877020,3142.31868068,0.0001,2]
[356644611,1742894877047,1728.02944802,0.0001,2]
[356644612,1742894877075,2379.23545747,0.0001,2]
[356644613,1742894877102,2986.96960229,0.0001,2]
[356644614,1742894877128,1110.83700592,0.0001,2]
[356644615,1742894877155,2791.89647285,0.0001,2]
[356644616,1742894877181,1933.92117843,0.0001,2]
[356644617,1742894877208,2951.58408955,0.0001,2]
[356644618,1742894877234,1920.98350735,0.0001,2]
[356644619,1742894877260,3142.31868068,0.0001,2]
[356644620,1742894877289,1610.21891793,0.0001,2]
[356644621,1742894877315,2132.83940715,0.0001,2]
[356644622,1742894877337,3274.35472585,0.0001,2]
[356644623,1742894877361,3274.35472585,0.0001,2]
[356644624,1742894877383,3274.35472585,0.0001,2]
[356644625,1742894877405,3274.35472585,0.0001,2]
[356644626,1742894877427,3274.35472585,0.0001,2]
[356644627,1742894877451,3274.35472585,0.0001,2]
[356644628,1742894877472,3274.35472585,0.0001,2]
[356644629,1742894877501,60500.82038237,0.0001,2]
[356644631,1742894912587,-156.21050796,0.000119,2]
[356644632,1742894912610,-6.16598397,0.000119,2]
[356644640,1742894964387,-152.91151117,0.000119,2]
[356644641,1742894981876,-157.907721,0.0001184,2]
[356644646,1742895005016,-8.00574696,0.000119,2]
[356644647,1742895005041,-150.0,0.00011969,2]
[356644648,1742895005064,-118.65995425,0.00011973,2]
[356644657,1742895031431,-150.0,0.00011999,2]
[356644658,1742895031440,-8297.27793675,0.00012,2]
[356644659,1742895031656,-298587.29044744,0.00012,2]
[356644675,1742895037382,-9262.70681193,0.00012,2]
[356644676,1742895037394,-1134.43000002,0.00012,2]
[356644732,1742895039786,-341.18600319,0.00012,2]
[356644733,1742895039798,-408.06425394,0.00012,2]
[356644734,1742895039809,-200953.08813699,0.00012,2]
[356644735,1742895039821,-4343.53786299,0.00012,2]
[356644736,1742895039832,-1901.33811082,0.00012,2]
[356644738,1742895042117,-188.0768862,0.00012,2]
[356644740,1742895042513,-4002.3379599,0.00012,2]
[356644741,1742895042784,-362.76485203,0.00012,2]
[356644745,1742895045522,-7385.83968902,0.00012,2]
[356644746,1742895045578,-7208.42611902,0.00012,2]
[356644747,1742895045636,-45229.06363221,0.00012,2]
[356644748,1742895045647,-416.30793719,0.00012,2]
[356644751,1742895116423,-151.0,0.0001194,2]
[356644752,1742895127763,1231.90627264,7.945e-05,2]
[356644753,1742895127791,2569.91554347,7.945e-05,2]
[356644754,1742895127818,1653.87353774,7.945e-05,2]
[356644755,1742895127844,2184.12376886,7.945e-05,2]
[356644756,1742895127871,1884.24219241,7.945e-05,2]
[356644757,1742895127898,3708.14587754,7.945e-05,2]
[356644758,1742895127925,2257.46157056,7.945e-05,2]
[356644759,1742895127951,2465.35186696,7.945e-05,2]
[356644760,1742895127978,3433.84005765,7.945e-05,2]
[356644761,1742895128005,2362.02512666,7.945e-05,2]
[356644762,1742895128031,640.38274551,7.945e-05,2]
[356644763,1742895196053,-150.0,0.0001194,2]
[356644764,1742895268073,-151.0,0.0001194,2]
[356644765,1742895344183,-182.808462,0.0001194,2]
[356644766,1742895421865,-166.66,0.0001194,2]
[356644767,1742895430302,-27.754785,0.0001194,2]
[356644768,1742895430322,-27.754785,0.00012,2]
[356644769,1742895430337,-1559824.49043,0.00012,2]
[356644770,1742895460482,-227.14608347,0.000119,2]
[356644771,1742895493025,-383.20611653,0.000119,2]
[356644772,1742895509392,-160.08132431,0.0001176,2]
[356644773,1742895543009,-150.0,0.0001176,2]
[356644774,1742895625862,-126.96567569,0.0001176,2]
[356644775,1742895625885,-250.376,0.0001176,2]
[356644776,1742895625907,-325.2421,0.000119,2]
[356644777,1742895625930,-276.3349,0.00011999,2]
[356644778,1742895701939,-230.68395514,0.000119,2]
[356644779,1742895797635,-158.38440415,0.000119,2]
[356644780,1742895831909,476.0,0.00031715,120]
[356644781,1742895846400,-244.78187335,0.000119,2]
[356644782,1742895902554,-67.90116736,0.000119,2]
[356644783,1742895902576,-94.02194644,0.000119,2]
[356644786,1742895921396,-150.98995775,0.000119,2]
[356644787,1742895986055,-152.91151117,0.000119,2]
[356644788,1742895992125,-216.07485828,0.000119,2]
[356644789,1742896008108,-63.72792636,0.000119,2]
[356644790,1742896008131,-209.3327,0.000119,2]
[356644791,1742896008154,-160.18487364,0.000119,2]
[356644801,1742896113699,-292.5542481,0.000119,2]
[356644804,1742896139457,-179.87709353,0.000119,2]
[356644805,1742896143083,-168.48,0.000119,2]
[356644810,1742896170074,-250.00582104,0.000119,2]
[356644814,1742896197806,-202.43854032,0.000119,2]
[356644815,1742896203144,-181.09745514,0.00011899,2]
[356644816,1742896207362,-118.90254486,0.00011899,2]
[356644817,1742896207385,-55.1519117,0.000119,2]
[356644818,1742896212181,-152.91151117,0.000119,2]
[356644819,1742896215882,-167.73673983,0.000118,2]
[356644820,1742896215906,-50.08208742,0.000119,2]
[356644824,1742896231586,-152.91151117,0.000119,2]
[356644825,1742896231609,-3261.48550191,0.000119,2]
[356644826,1742896231619,-1327.942,0.000119,2]
[356644827,1742896231628,-4197.9548,0.000119,2]
[356644828,1742896231638,-221.1045,0.000119,2]
[356644829,1742896231648,-274.853,0.000119,2]
[356644830,1742896231657,-309.7644,0.000119,2]
[356644831,1742896231667,-333.18627743,0.00011999,2]
[356644832,1742896231679,-393.9379123,0.00011999,2]
[356644833,1742896231688,-2118.96977161,0.00011999,2]
[356644834,1742896231698,-135.31611182,0.00011999,2]
[356644835,1742896231710,-14.68388818,0.00011999,2]
[356644836,1742896231720,-5662.77562737,0.00012,2]
[356644837,1742896231732,-1199.54019934,0.00012,2]
[356644838,1742896231876,-607.23672163,0.00012,2]
[356644839,1742896231887,-1399.80111379,0.00012,2]
[356644840,1742896231898,-2613.10872722,0.00012,2]
[356644841,1742896231981,-1400.2024902,0.00012,2]
[356644880,1742896237495,-1358.61740743,0.000119,2]
[356644922,1742896238382,-253.59912675,0.000119,2]
[356645046,1742896239685,-1557.6820926,0.000119,2]
[356645048,1742896239697,-798.01357322,0.000119,2]
[356645050,1742896239707,-344.80263191,0.00012,2]
[356645060,1742896239790,-518.37168915,0.00012,2]
[356645067,1742896239843,-1285.05571944,0.00012,2]
[356645073,1742896239898,-4882.7743813,0.00012,2]
[356645113,1742896240273,-3.92198506,0.00012,2]
[356645116,1742896240291,-947.66428876,0.00012,2]
[356645384,1742896242901,-464.76347741,0.00012,2]
[356645386,1742896242913,-2801.29996,0.00012,2]
[356645388,1742896242925,-1596.299985,0.00012,2]
[356645394,1742896242971,-12743.65719097,0.00012,2]
[356645397,1742896242982,-105574.53254464,0.00012,2]
[356645603,1742896245521,-620.1702649,0.00012,2]
[356645604,1742896245533,-253.52,0.00012,2]
[356645605,1742896245546,-1969.14069613,0.00012,2]
[356645606,1742896245644,-2310.48757776,0.00012,2]
[356645607,1742896245785,-856.2321508,0.00012,2]
[356645608,1742896245797,-3617.06443188,0.00012,2]
[356645609,1742896245808,-547.84176427,0.00012,2]
[356645610,1742896245837,-50477.01198386,0.00012,2]
[356645611,1742896245848,-813.18177488,0.00012,2]
[356645612,1742896245860,-373.49586585,0.00012,2]
[356645613,1742896245891,-13168.78318536,0.00012,2]
[356645621,1742896322811,-152.25687035,0.00011934,2]
[356645623,1742896328469,-168.2116392,0.000119,2]
[356645625,1742896370945,150.0,0.00031715,30]
[356645627,1742896376836,-1913.6831,0.000119,2]
[356645628,1742896378059,-400.2063,0.000119,2]
[356645629,1742896435260,-158.24435286,0.000119,2]
[356645630,1742896471740,-150.0,0.00011899,2]
[356645631,1742896471764,-84.57342221,0.000119,2]
[356645633,1742896565577,-151.24,0.000119,2]
[356645634,1742896678596,-150.0,0.000118,2]
[356645635,1742896678618,-1.0870251,0.000118,2]
[356645636,1742896695640,-152.6363921,0.000118,2]
[356645637,1742896707461,-200.0,0.000118,2]
[356645638,1742896779319,-154.3501345,0.00011684,2]
[356645639,1742896783758,250.0,0.00011,2]
[356645640,1742896806368,-150.0,0.00011684,2]
[356645642,1742896814581,-130.44950895,0.00011684,2]
[356645643,1742896814603,-102.13453937,0.00011742,2]
[356645644,1742896825722,-47.86546063,0.00011742,2]
[356645645,1742896825745,-103.17904831,0.000118,2]
[356645646,1742896887256,-150.0,0.000118,2]
[356645647,1742896905283,-150.0,0.000118,2]
[356645648,1742896909828,-176.8632461,0.000118,2]
[356645649,1742896922612,-151.28,0.000118,2]
[356645650,1742896942858,1824.61963118,0.00031716,30]
[356645651,1742896955935,-153.0,0.000118,2]
[356645652,1742897012532,-230.53094839,0.000118,2]
[356645653,1742897067607,-176.91411,0.0001321,9]
[356645654,1742897067628,-34.16822567,0.0001328,9]
[356645655,1742897078737,-147.51964,0.000118,2]
[356645656,1742897078759,-150.0,0.000118,2]
[356645657,1742897078781,-2.48036,0.000118,2]
[356645658,1742897086377,-150.0,0.000118,2]
[356645659,1742897149657,-150.0,0.000118,2]
[356645660,1742897163027,-150.0,0.00011799,2]
[356645661,1742897192951,-173.14,0.000118,2]
[356645662,1742897198812,-186.03,0.000118,2]
[356645663,1742897203767,-150.0,0.000118,2]
[356645664,1742897216391,-150.0,0.000118,2]
[356645666,1742897283707,-178.70313746,0.00011799,2]
[356645667,1742897318569,-217.6494873,0.00011751,2]
[356645668,1742897323086,-217.15015615,0.00011751,2]
[356645669,1742897323112,-61.71984385,0.00011799,2]
[356645670,1742897336240,-59.57701869,0.00011799,2]
[356645671,1742897336263,-140.58942694,0.000118,2]
[356645672,1742897336652,-11511.2,0.000118,2]
[356645673,1742897361854,-164.19,0.00025093,120]
[356645674,1742897361881,-164.19,0.00028678,120]
[356645675,1742897361911,-164.19,0.00032263,120]
[356645676,1742897361936,-14177.51876883,0.0003511,30]
[356645677,1742897361974,-2448.26326017,0.00036867,40]
[356645678,1742897362003,-113803.05221342,0.00042,120]
[356645679,1742897362031,-156.98,0.00042,120]
[356645680,1742897362057,-2072.75,0.00042,120]
[356645681,1742897362082,-1844.72,0.00042,120]
[356645682,1742897362108,-975.96,0.00042,120]
[356645683,1742897362133,-14578.43887882,0.000425,30]
[356645684,1742897362157,-3800.99560093,0.00043561,60]
[356645685,1742897362183,-156.97733527,0.00043836,31]
[356645686,1742897362208,-196.87808924,0.00044125,120]
[356645687,1742897362231,-500.0,0.00045,120]
[356645688,1742897362256,-762.7761381,0.00045,30]
[356645689,1742897362280,-1048.5,0.00045,120]
[356645690,1742897362305,-590.0,0.000459,30]
[356645691,1742897362329,-31755.89684153,0.00046,120]
[356645692,1742897362353,-36093.90528018,0.00046,120]
[356645693,1742897362379,-1099.58,0.000465,120]
[356645694,1742897362403,-516.214671,0.00046575,120]
[356645695,1742897362431,-500.0,0.00046575,120]
[356645696,1742897362456,-500.0,0.00046575,120]
[356645697,1742897362479,-500.0,0.00046575,120]
[356645698,1742897362504,-500.0,0.00046575,120]
[356645699,1742897362527,-500.0,0.00046575,120]
[356645700,1742897362551,-500.0,0.00046575,120]
[356645701,1742897362575,-601.91,0.00046575,120]
[356645702,1742897362599,-500.0,0.00046575,120]
[356645703,1742897362624,-781.72,0.00046575,120]
[356645704,1742897362648,-500.0,0.00046575,120]
[356645705,1742897362673,-620.27,0.00046575,120]
[356645706,1742897362857,-1502.4,0.00046575,120]
[356645707,1742897362883,-500.0,0.00046575,120]
[356645708,1742897362907,-500.0,0.00046575,120]
[356645709,1742897362931,-3754.59,0.00046575,120]
[356645710,1742897362953,-521.67219601,0.00046575,120]
[356645711,1742897362976,-500.0,0.00046575,120]
[356645712,1742897363000,-500.0,0.00046575,120]
[356645713,1742897363024,-453.26571056,0.00046575,120]
[356645714,1742897363048,-500.0,0.00046575,120]
[356645715,1742897363073,-500.0,0.00046575,120]
[356645716,1742897363097,-500.0,0.00046575,120]
[356645717,1742897363126,-929.7,0.00046575,120]
[356645718,1742897363152,-515.74938591,0.00046849,120]
[356645719,1742897363176,-493.29517142,0.00046849,120]
[356645720,1742897363201,-500.0,0.00046849,120]
[356645721,1742897363225,-500.0,0.00046849,120]
[356645722,1742897363249,-640.70785916,0.00046849,120]
[356645723,1742897363273,-500.0,0.00046849,120]
[356645724,1742897363296,-601.91,0.00046849,120]
[356645725,1742897363320,-500.0,0.00046849,120]
[356645726,1742897363344,-781.72,0.00046849,120]
[356645727,1742897363371,-500.0,0.00046849,120]
[356645728,1742897363395,-620.27,0.00046849,120]
[356645729,1742897363419,-1502.4,0.00046849,120]
[356645730,1742897363444,-242.98253314,0.00046849,120]
[356645731,1742897363468,-500.0,0.00046849,120]
[356645732,1742897363493,-3754.59,0.00046849,120]
[356645733,1742897363516,-500.0,0.00046849,120]
[356645734,1742897363540,-500.0,0.00046849,120]
[356645735,1742897363564,-500.0,0.00046849,120]
[356645736,1742897363589,-500.0,0.00046849,120]
[356645737,1742897363612,-500.0,0.00046849,120]
[356645738,1742897363636,-929.7,0.00046849,120]
[356645739,1742897363660,-661.9231137,0.00047,120]
[356645740,1742897363683,-2000.0,0.00047,120]
[356645741,1742897363707,-51901.97347488,0.00047,120]
[356645742,1742897363731,-456.544,0.00047006,79]
[356645743,1742897363755,-234.92,0.00047006,79]
[356645744,1742897363780,-500.0,0.00047123,120]
[356645745,1742897363804,-500.0,0.00047123,120]
[356645746,1742897363829,-500.0,0.00047123,120]
[356645747,1742897363853,-601.91,0.00047123,120]
[356645748,1742897363877,-500.0,0.00047123,120]
[356645749,1742897363901,-781.72,0.00047123,120]
[356645750,1742897363925,-500.0,0.00047123,120]
[356645751,1742897363949,-620.27,0.00047123,120]
[356645752,1742897363974,-1502.4,0.00047123,120]
[356645753,1742897363998,-500.0,0.00047123,120]
[356645754,1742897364023,-3754.59,0.00047123,120]
[356645755,1742897364048,-500.0,0.00047123,120]
[356645756,1742897364072,-500.0,0.00047123,120]
[356645757,1742897364096,-500.0,0.00047123,120]
[356645758,1742897364121,-500.0,0.00047123,120]
[356645759,1742897364146,-500.0,0.00047123,120]
[356645760,1742897364169,-929.7,0.00047123,120]
[356645761,1742897364195,-500.0,0.00047397,120]
[356645762,1742897364219,-500.0,0.00047397,120]
[356645763,1742897364243,-500.0,0.00047397,120]